bitfinex/quotes_BTCUSD_20250410
["timestamp","ask_amount","ask_price","bid_price","bid_amount"]
[1744265952285,1.43547182,82224.0,82223.0,0.00012769]
[1744265952480,1.44400215,82224.0,82223.0,0.00112769]
[1744265953606,1.44600215,82224.0,82223.0,0.00012769]
[1744265954129,1.43847182,82224.0,82223.0,0.00012769]
[1744265955185,1.44776239,82224.0,82223.0,0.00012769]
[1744265958536,1.44576239,82224.0,82223.0,0.00012769]
[1744265959677,1.44476239,82224.0,82223.0,0.00012769]
[1744265960077,1.44576239,82224.0,82223.0,0.00012769]
[1744265960698,1.44676239,82224.0,82223.0,0.00012769]
[1744265963268,1.58640239,82224.0,82223.0,0.00012769]
[1744265970080,1.44676239,82224.0,82223.0,0.00012769]
[1744265970284,1.58640239,82224.0,82223.0,0.00012769]
[1744265979322,1.44476239,82224.0,82223.0,0.00012769]
[1744265979526,1.75305271,82224.0,82223.0,6.9e-07]
[1744265979683,1.76459236,82224.0,82223.0,6.9e-07]
[1744265980237,1.76659236,82224.0,82223.0,6.9e-07]
[1744265980412,1.76559236,82224.0,82223.0,6.9e-07]
[1744265980738,1.77459236,82224.0,82223.0,6.9e-07]
[1744265981789,1.76959236,82224.0,82223.0,6.9e-07]
[1744265982013,1.77059236,82224.0,82223.0,6.9e-07]
[1744265982216,1.76659236,82224.0,82223.0,6.9e-07]
[1744265982658,1.76159236,82224.0,82223.0,6.9e-07]
[1744265982867,1.66408289,82224.0,82223.0,6.9e-07]
[1744265983480,1.67208289,82224.0,82223.0,6.9e-07]
[1744265983697,1.66354324,82224.0,82223.0,6.9e-07]
[1744265984565,1.52390324,82224.0,82223.0,6.9e-07]
[1744265984769,1.78397583,82224.0,82223.0,6.9e-07]
[1744265988507,1.66354324,82224.0,82223.0,6.9e-07]
[1744265991166,1.79144324,82224.0,82223.0,6.9e-07]
[1744265991462,1.66354324,82224.0,82223.0,6.9e-07]
[1744265992703,2.91582324,82224.0,82223.0,6.9e-07]
[1744265999458,2.92435267,82224.0,82223.0,6.9e-07]
[1744265999737,3.04478526,82224.0,82223.0,6.9e-07]
[1744266000524,2.92435267,82224.0,82223.0,6.9e-07]
[1744266000728,2.82825267,82224.0,82223.0,6.9e-07]
[1744266000938,2.47371182,82224.0,82223.0,6.9e-07]
[1744266001136,2.81371182,82224.0,82223.0,6.9e-07]
[1744266003189,2.92685267,82224.0,82223.0,6.9e-07]
[1744266003394,3.04728526,82224.0,82223.0,6.9e-07]
[1744266004280,3.05228526,82224.0,82223.0,6.9e-07]
[1744266004686,2.81371182,82224.0,82223.0,6.9e-07]
[1744266005052,2.80571182,82224.0,82223.0,6.9e-07]
[1744266005505,2.80671182,82224.0,82223.0,6.9e-07]
[1744266005862,2.81371182,82224.0,82223.0,6.9e-07]
[1744266006303,2.80671182,82224.0,82223.0,6.9e-07]
[1744266006488,2.81371182,82224.0,82223.0,6.9e-07]
[1744266006702,2.80571182,82224.0,82223.0,6.9e-07]
[1744266007197,2.81371182,82224.0,82223.0,6.9e-07]
[1744266010881,1.85176125,82224.0,82223.0,6.9e-07]
[1744266011115,1.85176125,82224.0,82223.0,0.04840069]
[1744266011116,1.47580943,82224.0,82223.0,0.04840069]
[1744266011358,0.22352943,82224.0,82223.0,0.30380269]
[1744266011814,0.22352943,82224.0,82223.0,0.35120269]
[1744266011815,0.00852943,82224.0,82223.0,0.35120269]
[1744266012306,0.01352943,82224.0,82223.0,0.35120269]
[1744266012530,0.005,82224.0,82223.0,0.35120269]
[1744266012758,0.205,82224.0,82223.0,0.35120269]
[1744266012980,0.203,82224.0,82223.0,0.35120269]
[1744266013182,0.203,82224.0,82223.0,0.34004069]
[1744266013485,0.2,82224.0,82223.0,0.35220269]
[1744266013751,0.2,82224.0,82223.0,0.09680069]
[1744266013957,0.443237,82224.0,82223.0,0.09680069]
[1744266014162,0.2,82224.0,82223.0,0.09680069]
[1744266015767,0.2,82224.0,82223.0,0.34004069]
[1744266020587,0.443237,82224.0,82223.0,0.09680069]
[1744266020951,0.2,82224.0,82223.0,0.09680069]
[1744266021673,0.443237,82224.0,82223.0,0.09680069]
[1744266022057,0.455398,82224.0,82223.0,0.00100069]
[1744266022259,0.57595182,82224.0,82223.0,0.00100069]
[1744266022743,1.03767182,82224.0,82223.0,0.00100069]
[1744266022857,1.44902097,82224.0,82223.0,0.00100069]
[1744266023064,1.45753323,82224.0,82223.0,0.00100069]
[1744266023470,1.47207408,82224.0,82223.0,0.00100069]
[1744266023697,1.49477608,82224.0,82223.0,0.00100069]
[1744266023904,1.61821086,82224.0,82223.0,0.00100069]
[1744266024743,1.61821086,82224.0,82223.0,6.9e-07]
[1744266024883,1.62021086,82224.0,82223.0,6.9e-07]
[1744266025799,1.62221086,82224.0,82223.0,6.9e-07]
[1744266026624,1.62821086,82224.0,82223.0,6.9e-07]
[1744266028011,1.50777827,82224.0,82223.0,6.9e-07]
[1744266028216,1.43475827,82224.0,82223.0,6.9e-07]
[1744266028507,1.57435827,82224.0,82223.0,6.9e-07]
[1744266031194,1.58586218,82224.0,82223.0,6.9e-07]
[1744266032515,1.53716218,82224.0,82223.0,6.9e-07]
[1744266033960,1.51446018,82224.0,82223.0,6.9e-07]
[1744266034848,1.53716881,82224.0,82223.0,6.9e-07]
[1744266035501,1.56214021,82224.0,82223.0,6.9e-07]
[1744266035697,1.53943158,82224.0,82223.0,6.9e-07]
[1744266035894,1.51446018,82224.0,82223.0,6.9e-07]
[1744266036748,1.58748018,82224.0,82223.0,6.9e-07]
[1744266040208,1.61018255,82224.0,82223.0,6.9e-07]
[1744266040682,1.5956417,82224.0,82223.0,6.9e-07]
[1744266040914,1.2556417,82224.0,82223.0,6.9e-07]
[1744266041148,1.1160417,82224.0,82223.0,6.9e-07]
[1744266041391,1.5956417,82224.0,82223.0,0.04570069]
[1744266041610,1.2556417,82224.0,82223.0,0.04570069]
[1744266042166,1.5956417,82224.0,82223.0,0.04570069]
[1744266045093,1.57293933,82224.0,82223.0,0.04570069]
[1744266047789,1.17293933,82224.0,82223.0,0.04570069]
[1744266047993,1.17293933,82224.0,82223.0,6.9e-07]
[1744266051985,1.16158799,82224.0,82223.0,6.9e-07]
[1744266058162,1.19570732,82224.0,82223.0,6.9e-07]
[1744266059000,1.1729611,82224.0,82223.0,6.9e-07]
[1744266060729,1.0333611,82224.0,82223.0,6.9e-07]
[1744266061077,1.02198799,82224.0,82223.0,6.9e-07]
[1744266063606,1.42198799,82224.0,82223.0,6.9e-07]
[1744266066779,1.44475189,82224.0,82223.0,6.9e-07]
[1744266067144,1.45613408,82224.0,82223.0,6.9e-07]
[1744266070700,1.59569408,82224.0,82223.0,6.9e-07]
[1744266076205,1.03095308,82224.0,82223.0,6.9e-07]
[1744266076374,0.50746152,82224.0,82223.0,0.04990069]
[1744266076957,0.51962252,82224.0,82223.0,0.04990069]
[1744266077158,0.51262252,82224.0,82223.0,0.04990069]
[1744266077581,0.50862252,82224.0,82223.0,0.04990069]
[1744266077781,0.48585862,82224.0,82223.0,0.04990069]
[1744266077996,0.48785862,82224.0,82223.0,0.04990069]
[1744266079082,0.48785862,82224.0,82223.0,6.9e-07]
[1744266079083,0.60641244,82224.0,82223.0,6.9e-07]
[1744266079643,1.06673244,82224.0,82223.0,6.9e-07]
[1744266079835,1.20995101,82224.0,82223.0,6.9e-07]
[1744266079976,1.25605101,82224.0,82223.0,6.9e-07]
[1744266080179,1.65605101,82224.0,82223.0,6.9e-07]
[1744266080620,1.53561842,82224.0,82223.0,6.9e-07]
[1744266081242,1.46259842,82224.0,82223.0,6.9e-07]
[1744266083393,1.47713927,82224.0,82223.0,6.9e-07]
[1744266083845,1.55015927,82224.0,82223.0,6.9e-07]
[1744266084224,1.55515927,82224.0,82223.0,6.9e-07]
[1744266084426,0.255482,82197.0,82191.0,0.004]
[1744266084742,0.38457723,82197.0,82196.0,0.00076384]
[1744266085343,0.79372408,82197.0,82196.0,0.00076384]
[1744266085493,0.81651006,82197.0,82196.0,0.00076384]
[1744266085695,0.83640451,82197.0,82196.0,0.00076384]
[1744266086105,0.83640451,82197.0,82196.0,0.00176384]
[1744266086729,1.03640451,82197.0,82196.0,0.00176384]
[1744266087615,1.37640451,82197.0,82196.0,0.00176384]
[1744266087841,1.4968371,82197.0,82196.0,0.00176384]
[1744266088043,1.39094536,82197.0,82196.0,0.00176384]
[1744266088450,1.40291524,82197.0,82196.0,0.00076384]
[1744266088898,1.40291524,82197.0,82196.0,0.00176384]
[1744266089066,1.40291524,82197.0,82196.0,0.00076384]
[1744266089454,1.40591524,82197.0,82196.0,0.00076384]
[1744266090195,1.40291524,82197.0,82196.0,0.00076384]
[1744266090571,1.41791524,82197.0,82196.0,0.00076384]
[1744266090939,1.45598739,82197.0,82196.0,0.00076384]
[1744266091337,1.49093524,82197.0,82196.0,0.00076384]
[1744266091773,1.63049524,82197.0,82196.0,0.00076384]
[1744266092010,1.49093524,82197.0,82196.0,0.00076384]
[1744266092164,1.63049524,82197.0,82196.0,0.00076384]
[1744266098581,1.63020093,82197.0,82196.0,0.00076384]
[1744266106284,1.54264008,82197.0,82196.0,0.00076384]
[1744266106939,0.87830554,82197.0,82196.0,0.00076384]
[1744266107161,0.85551956,82197.0,82196.0,0.29248384]
[1744266107428,0.8470073,82197.0,82196.0,0.29248384]
[1744266107711,0.8400073,82197.0,82196.0,0.29248384]
[1744266107942,0.82062511,82197.0,82196.0,0.29248384]
[1744266108130,0.82962511,82197.0,82196.0,0.29248384]
[1744266108413,0.35710141,82197.0,82196.0,0.35434984]
[1744266108629,0.35210141,82197.0,82196.0,0.35434984]
[1744266108877,0.15310141,82197.0,82196.0,0.35434984]
[1744266109100,0.15410141,82197.0,82196.0,0.35434984]
[1744266109529,0.14910141,82197.0,82196.0,0.35434984]
[1744266110017,0.1594626,82197.0,82196.0,0.35434984]
[1744266111328,0.1604626,82197.0,82196.0,0.35434984]
[1744266111674,0.1604626,82197.0,82196.0,0.34218384]
[1744266112146,0.41230318,82197.0,82196.0,0.09886384]
[1744266112361,0.42446818,82197.0,82196.0,0.09886384]
[1744266112602,0.16898618,82197.0,82196.0,0.09886384]
[1744266112810,0.36898618,82197.0,82196.0,0.09886384]
[1744266113037,0.36898618,82197.0,82196.0,0.34218384]
[1744266113512,0.36898618,82197.0,82196.0,0.35434984]
[1744266113736,0.16898618,82197.0,82196.0,0.34218384]
[1744266113949,0.41230318,82197.0,82196.0,0.09886384]
[1744266114166,0.16898618,82197.0,82196.0,0.09886384]
[1744266115391,0.19172088,82197.0,82196.0,0.34218384]
[1744266116284,0.19172088,82197.0,82196.0,0.09886384]
[1744266116523,0.43503788,82197.0,82196.0,0.09886384]
[1744266117296,0.19172088,82197.0,82196.0,0.09886384]
[1744266117490,0.43503788,82197.0,82196.0,0.09886384]
[1744266120217,0.29547788,82197.0,82196.0,0.09886384]
[1744266120430,0.05216088,82197.0,82196.0,0.09886384]
[1744266121163,0.29547788,82197.0,82196.0,0.09886384]
[1744266121361,0.29547788,82197.0,82196.0,0.05046384]
[1744266121566,0.30764288,82197.0,82196.0,0.05046384]
[1744266121764,0.50764288,82197.0,82196.0,0.05046384]
[1744266122403,0.6281967,82197.0,82196.0,0.00076384]
[1744266123010,1.0281967,82197.0,82196.0,0.00076384]
[1744266129768,1.0281967,82197.0,82196.0,0.00076384]
[1744266132575,1.0281967,82197.0,82196.0,0.30204984]
[1744266132576,0.25216088,82197.0,82196.0,0.30204984]
[1744266132717,0.05216088,82197.0,82196.0,0.71584984]
[1744266132922,0.0436373,82197.0,82196.0,0.76134984]
[1744266133202,0.03227611,82197.0,82196.0,0.76134984]
[1744266133443,0.001,82197.0,82196.0,0.76134984]
[1744266133639,0.2,82202.0,82201.0,0.255471]
[1744266133794,0.243299,82204.0,82201.0,0.255471]
[1744266133993,0.02277024,82202.0,82201.0,0.243306]
[1744266134403,0.03126542,82202.0,82201.0,0.243306]
[1744266135016,0.05119623,82202.0,82200.0,0.243307]
[1744266135233,0.03042599,82202.0,82200.0,0.243307]
[1744266135437,0.03042599,82202.0,82196.0,0.76134984]
[1744266135438,0.243312,82199.0,82196.0,0.50586384]
[1744266135664,0.00848609,82198.0,82196.0,0.50586384]
[1744266135823,0.255482,82197.0,82196.0,0.46006384]
[1744266136020,0.26396429,82197.0,82196.0,0.41456384]
[1744266136442,0.27535325,82197.0,82196.0,0.41456384]
[1744266136826,0.2838951,82197.0,82196.0,0.41456384]
[1744266138564,0.81751892,82197.0,82196.0,0.00076384]
[1744266138762,1.15703892,82197.0,82196.0,0.00076384]
[1744266139326,1.21777977,82197.0,82196.0,0.00076384]
[1744266139959,1.61777977,82197.0,82196.0,0.00076384]
[1744266140391,1.61877977,82197.0,82196.0,0.00076384]
[1744266141028,1.61777977,82197.0,82196.0,0.00076384]
[1744266141239,1.62577977,82197.0,82196.0,0.00076384]
[1744266141654,1.63277977,82197.0,82196.0,0.00076384]
[1744266142059,1.6555423,82197.0,82196.0,0.00076384]
[1744266144126,1.63277977,82197.0,82196.0,0.00076384]
[1744266146136,1.61823892,82197.0,82196.0,0.00076384]
[1744266146256,1.57203892,82197.0,82196.0,0.00076384]
[1744266146450,1.43251892,82197.0,82196.0,0.00076384]
[1744266146688,1.57199892,82197.0,82196.0,0.00076384]
[1744266147240,1.59474153,82197.0,82196.0,0.00076384]
[1744266150190,1.60928238,82197.0,82196.0,0.00076384]
[1744266150586,1.65588238,82197.0,82196.0,0.00076384]
[1744266150834,1.77631497,82197.0,82196.0,0.00076384]
[1744266151013,1.70438238,82197.0,82196.0,0.00076384]
[1744266152929,1.70438238,82197.0,82196.0,8.4e-07]
[1744266153246,0.668568,82192.0,82191.0,0.004]
[1744266153379,0.80366267,82192.0,82191.0,0.004]
[1744266153575,0.86049286,82192.0,82191.0,0.004]
[1744266153785,0.88323547,82192.0,82191.0,0.004]
[1744266153985,1.28323547,82192.0,82191.0,0.004]
[1744266154214,1.29462443,82192.0,82191.0,0.004]
[1744266154383,1.30316628,82192.0,82191.0,0.004]
[1744266154585,1.31847094,82192.0,82191.0,0.004]
[1744266154814,1.52347094,82192.0,82191.0,0.004]
[1744266155223,1.59981009,82192.0,82191.0,0.004]
[1744266155711,1.25050543,82192.0,82191.0,0.004]
[1744266155915,0.63795543,82192.0,82191.0,0.004]
[1744266156180,0.71102543,82192.0,82191.0,0.004]
[1744266156314,1.11102543,82192.0,82191.0,0.004]
[1744266156717,1.45102543,82192.0,82191.0,0.004]
[1744266158631,1.59054543,82192.0,82191.0,0.004]
[1744266168469,0.668571,82191.0,82190.0,0.0003372]
[1744266168661,0.79766667,82191.0,82190.0,0.0003372]
[1744266168867,0.80554424,82191.0,82190.0,0.0003372]
[1744266169070,0.82828685,82191.0,82190.0,0.0003372]
[1744266169268,1.23967581,82191.0,82190.0,0.0003372]
[1744266169840,1.44467581,82191.0,82190.0,0.0003372]
[1744266170039,1.44967581,82191.0,82190.0,0.0003372]
[1744266174202,1.46421666,82191.0,82190.0,0.0003372]
[1744266174426,1.50981666,82191.0,82190.0,0.0003372]
[1744266174881,0.759178,82189.0,82188.0,2e-07]
[1744266175006,1.00900569,82189.0,82188.0,2e-07]
[1744266175356,1.02527595,82189.0,82188.0,2e-07]
[1744266175510,0.93328554,82189.0,82188.0,2e-07]
[1744266175719,0.668593,82184.0,82183.0,0.0003374]
[1744266175958,0.83417768,82184.0,82183.0,0.0003374]
[1744266176160,0.97369768,82184.0,82183.0,0.0003374]
[1744266176366,0.98223953,82184.0,82183.0,0.0003374]
[1744266176560,1.38223953,82184.0,82183.0,0.0003374]
[1744266176739,1.39362849,82184.0,82183.0,0.0003374]
[1744266177139,1.40062849,82184.0,82183.0,0.0003374]
[1744266177345,1.40862849,82184.0,82183.0,0.0003374]
[1744266177763,1.60862849,82184.0,82183.0,0.0003374]
[1744266181797,1.59408764,82184.0,82183.0,0.0003374]
[1744266184342,0.328624,82174.0,82173.0,0.0465]
[1744266184500,0.4569632,82174.0,82173.0,0.0465]
[1744266184687,0.47970581,82174.0,82173.0,0.0465]
[1744266185275,0.88824766,82174.0,82173.0,0.0465]
[1744266185696,0.89963662,82174.0,82173.0,0.0465]
[1744266185866,1.10263662,82174.0,82173.0,0.0465]
[1744266186047,0.255566,82170.0,82169.0,0.0003374]
[1744266186247,0.39684112,82170.0,82169.0,0.0003374]
[1744266186451,0.42736925,82170.0,82169.0,0.0003374]
[1744266186646,0.43875821,82170.0,82169.0,0.0003374]
[1744266187236,0.43875821,82170.0,82169.0,0.00046517]
[1744266187237,0.85182821,82170.0,82169.0,0.00046517]
[1744266187437,0.85282821,82170.0,82169.0,0.00046517]
[1744266187961,1.05282821,82170.0,82169.0,0.00046517]
[1744266188545,1.45282821,82170.0,82169.0,0.00046517]
[1744266188748,1.45782821,82170.0,82169.0,0.00046517]
[1744266189152,1.46182821,82170.0,82169.0,0.00046517]
[1744266190913,1.47111254,82170.0,82169.0,0.00046517]
[1744266191054,1.61063254,82170.0,82169.0,0.00046517]
[1744266192753,1.38875821,82170.0,82169.0,0.00046517]
[1744266192971,1.52827821,82170.0,82169.0,0.00046517]
[1744266201422,1.60134821,82170.0,82169.0,0.00046517]
[1744266202307,1.60134821,82170.0,82169.0,1.7e-07]
[1744266202308,1.78482165,82170.0,82169.0,1.7e-07]
[1744266203205,0.668655,82164.0,82163.0,0.0003374]
[1744266203402,0.81195143,82164.0,82163.0,0.00046515]
[1744266203738,1.0195317,82164.0,82163.0,0.00046515]
[1744266204013,1.0064617,82164.0,82163.0,0.00046515]
[1744266204216,1.01500355,82164.0,82163.0,0.00046515]
[1744266204576,1.02639251,82164.0,82163.0,0.00046515]
[1744266204779,1.02839251,82164.0,82163.0,0.00046515]
[1744266205429,1.03039251,82164.0,82163.0,0.00046515]
[1744266207939,1.03039251,82164.0,82163.0,0.04766515]
[1744266208113,0.63039251,82164.0,82163.0,0.04766515]
[1744266209180,0.50983869,82164.0,82163.0,0.04766515]
[1744266209677,0.48709608,82164.0,82163.0,0.04766515]
[1744266214047,0.47492608,82164.0,82163.0,0.46146515]
[1744266214250,0.48709608,82164.0,82163.0,0.46146515]
[1744266219396,0.72808249,82164.0,82163.0,0.41426515]
[1744266219610,0.6076499,82164.0,82163.0,0.41426515]
[1744266219961,1.0076499,82164.0,82163.0,0.41426515]
[1744266220615,1.03044184,82164.0,82163.0,0.41426515]
[1744266221175,0.90988802,82164.0,82163.0,0.41426515]
[1744266221371,0.50988802,82164.0,82163.0,0.41426515]
[1744266221631,0.49771802,82164.0,82163.0,0.41426515]
[1744266221795,0.30988802,82164.0,82163.0,0.41426515]
[1744266223269,0.29771802,82164.0,82163.0,0.41426515]
[1744266223427,0.30988802,82164.0,82163.0,0.41426515]
[1744266224813,0.05430302,82164.0,82163.0,0.41426515]
[1744266225017,0.05430302,82164.0,82163.0,0.51813515]
[1744266225399,0.04672275,82164.0,82163.0,0.63868897]
[1744266225599,0.01538896,82164.0,82163.0,0.63868897]
[1744266225858,0.01538896,82164.0,82163.0,1.01655186]
[1744266226056,0.2,82185.0,82180.0,0.012168]
[1744266226261,0.243357,82184.0,82181.0,0.0917]
[1744266226418,0.24971966,82184.0,82181.0,0.0917]
[1744266226623,0.24336,82183.0,82181.0,0.0917]
[1744266227025,0.01773384,82182.0,82181.0,0.0917]
[1744266227548,0.02626506,82182.0,82181.0,0.0917]
[1744266229161,0.02625597,82182.0,82181.0,0.0917]
[1744266230497,0.02625597,82182.0,82181.0,0.5055]
[1744266231601,0.26961797,82182.0,82181.0,0.5055]
[1744266232199,0.26108675,82182.0,82181.0,0.5055]
[1744266232736,0.27325475,82182.0,82181.0,0.5055]
[1744266233108,0.01772475,82182.0,82181.0,0.761033]
[1744266233284,0.2,82183.0,82182.0,0.012168]
[1744266233472,0.2,82183.0,82182.0,0.25553]
[1744266233674,0.2,82188.0,82185.0,0.24335]
[1744266233923,0.00641788,82187.0,82185.0,0.24335]
[1744266234072,0.00641788,82187.0,82184.0,0.255522]
[1744266234302,0.00641788,82187.0,82186.0,0.24335]
[1744266234508,0.00641788,82187.0,82186.0,0.669317]
[1744266234707,0.443331,82193.0,82189.0,0.243338]
[1744266234928,0.01498909,82192.0,82190.0,0.4138]
[1744266235346,0.01135203,82191.0,82190.0,0.4138]
[1744266235781,0.21782688,82191.0,82190.0,0.4138]
[1744266235973,0.21825207,82191.0,82190.0,0.657138]
[1744266236518,0.22025207,82191.0,82190.0,0.657138]
[1744266236723,0.02025207,82191.0,82190.0,0.705838]
[1744266236965,0.01377722,82191.0,82190.0,0.718004]
[1744266237685,0.00242519,82191.0,82190.0,0.718004]
[1744266238930,0.00042519,82191.0,82190.0,0.718004]
[1744266239905,0.25592619,82191.0,82190.0,0.4625]
[1744266240251,0.00708529,82191.0,82190.0,0.705838]
[1744266240820,0.00708529,82191.0,82190.0,0.4625]
[1744266241024,0.00708529,82191.0,82190.0,0.705838]
[1744266241445,0.00708529,82191.0,82190.0,0.4138]
[1744266242562,0.00708529,82191.0,82190.0,0.657138]
[1744266242965,0.26258629,82191.0,82190.0,0.4138]
[1744266244824,0.46258629,82191.0,82190.0,0.4138]
[1744266245652,0.47392656,82191.0,82190.0,0.4138]
[1744266246187,0.21842556,82191.0,82190.0,0.4138]
[1744266246395,0.21842556,82191.0,82190.0,0.764204]
[1744266246606,0.21842556,82191.0,82190.0,1.104204]
[1744266246849,0.0003374,82202.0,82201.0,0.255471]
[1744266247090,0.2003374,82212.0,82211.0,0.255439]
[1744266247345,0.20046488,82212.0,82211.0,0.67167163]
[1744266247562,0.20046488,82212.0,82211.0,0.669239]
[1744266247752,0.00046488,82212.0,82211.0,0.669239]
[1744266248727,0.00046488,82212.0,82211.0,0.670239]
[1744266249110,0.25590088,82212.0,82211.0,0.4148]
[1744266249518,0.24373788,82212.0,82211.0,0.4138]
[1744266249715,0.44373788,82212.0,82211.0,0.4138]
[1744266249959,0.20046488,82212.0,82211.0,0.4138]
[1744266250371,0.44373788,82212.0,82211.0,0.4138]
[1744266250546,0.20046488,82212.0,82211.0,0.4138]
[1744266251103,0.20046488,82212.0,82211.0,0.4148]
[1744266251231,0.45507231,82212.0,82211.0,0.4138]
[1744266251433,0.21179931,82212.0,82211.0,0.4148]
[1744266251666,0.46723531,82212.0,82211.0,0.4148]
[1744266252241,0.58778913,82212.0,82211.0,0.4148]
[1744266252978,0.59629483,82212.0,82211.0,0.4148]
[1744266253600,0.59729483,82212.0,82211.0,0.4148]
[1744266253799,0.59729483,82212.0,82211.0,0.4138]
[1744266254139,0.59629483,82212.0,82211.0,0.4138]
[1744266254339,0.60029483,82212.0,82211.0,0.4138]
[1744266254911,0.60329483,82212.0,82211.0,0.4138]
[1744266256340,1.00329483,82212.0,82211.0,0.4138]
[1744266257809,0.59113183,82212.0,82211.0,0.4138]
[1744266257961,0.60329483,82212.0,82211.0,0.4138]
[1744266258638,0.60029483,82212.0,82211.0,0.4138]
[1744266258841,0.59629483,82212.0,82211.0,0.4138]
[1744266259042,0.59829483,82212.0,82211.0,0.4138]
[1744266259399,0.60129483,82212.0,82211.0,0.4138]
[1744266259811,0.255489,82195.0,82194.0,0.4138]
[1744266260178,0.012164,82204.0,82195.0,0.012166]
[1744266260179,0.012165,82202.0,82195.0,0.012166]
[1744266260384,0.36385982,82201.0,82196.0,0.24332]
[1744266260579,0.0085057,82200.0,82196.0,0.24332]
[1744266260793,0.243314,82199.0,82195.0,0.255489]
[1744266260992,0.01133443,82198.0,82195.0,0.255489]
[1744266261186,0.01133443,82198.0,82197.0,0.243317]
[1744266261720,0.01133443,82198.0,82197.0,0.255482]
[1744266261912,0.01133443,82198.0,82197.0,0.243317]
[1744266262212,0.01985822,82198.0,82196.0,0.24332]
[1744266262367,0.243323,82195.0,82194.0,0.4138]
[1744266262551,0.01133443,82197.0,82194.0,0.657126]
[1744266262751,0.21133443,82197.0,82194.0,0.657126]
[1744266263033,0.21133443,82197.0,82195.0,0.243323]
[1744266263182,0.00852379,82196.0,82195.0,0.243323]
[1744266263397,0.01985822,82196.0,82195.0,0.243323]
[1744266263926,0.46317922,82196.0,82194.0,0.4138]
[1744266264130,0.243323,82195.0,82194.0,0.4148]
[1744266264349,0.21985822,82196.0,82194.0,0.658126]
[1744266264559,0.21133443,82196.0,82195.0,0.243323]
[1744266264774,0.13271882,82201.0,82195.0,0.243323]
[1744266264775,0.33271882,82201.0,82198.0,0.243314]
[1744266264905,0.32055382,82201.0,82200.0,0.255474]
[1744266265106,0.20852731,82201.0,82200.0,0.255474]
[1744266265507,0.21989828,82201.0,82200.0,0.669274]
[1744266265811,0.01989828,82201.0,82200.0,0.669274]
[1744266267425,0.01989828,82201.0,82200.0,0.670274]
[1744266267944,0.01137097,82201.0,82200.0,0.670274]
[1744266269375,0.01989975,82201.0,82200.0,0.670274]
[1744266271448,0.01989975,82201.0,82200.0,0.717174]
[1744266271987,0.00852878,82201.0,82200.0,0.717174]
[1744266272198,0.00046488,82212.0,82211.0,0.255439]
[1744266272397,0.00728013,82212.0,82211.0,0.669239]
[1744266272608,0.00046488,82212.0,82211.0,0.69190776]
[1744266272803,0.00728013,82212.0,82211.0,0.69190776]
[1744266273203,0.01865106,82212.0,82211.0,0.69190776]
[1744266274161,0.01865106,82212.0,82211.0,0.69290776]
[1744266274911,0.0271797,82212.0,82211.0,0.69290776]
[1744266276599,0.0271797,82212.0,82211.0,0.670239]
[1744266276736,0.0271797,82212.0,82211.0,0.4148]
[1744266277291,0.0271797,82212.0,82211.0,0.658076]
[1744266277526,0.0271797,82212.0,82211.0,0.4148]
[1744266277704,0.2271797,82212.0,82211.0,0.4148]
[1744266279159,0.4704527,82212.0,82211.0,0.4148]
[1744266279362,0.59100652,82212.0,82211.0,0.4148]
[1744266279552,0.60316952,82212.0,82211.0,0.4148]
[1744266281879,0.59635427,82212.0,82211.0,0.4148]
[1744266283115,0.59635427,82212.0,82211.0,0.001]
[1744266283322,0.99635427,82212.0,82211.0,0.001]
[1744266287525,0.59635427,82212.0,82211.0,0.001]
[1744266287697,0.58419127,82212.0,82211.0,0.001]
[1744266287899,0.99635427,82212.0,82211.0,0.001]
[1744266290135,0.59635427,82212.0,82211.0,0.001]
[1744266290542,0.71762427,82212.0,82211.0,0.001]
[1744266290684,1.16342427,82212.0,82211.0,0.001]
[1744266291618,1.16642427,82212.0,82211.0,0.001]
[1744266292037,1.31686427,82212.0,82211.0,0.001]
[1744266292997,0.255452,82207.0,82206.0,0.4138]
[1744266293206,0.37600582,82207.0,82206.0,0.4138]
[1744266293697,0.57600582,82207.0,82206.0,0.4138]
[1744266293894,0.58453446,82207.0,82206.0,0.4138]
[1744266294099,0.59590539,82207.0,82206.0,0.4138]
[1744266294739,0.99590539,82207.0,82206.0,0.4138]
[1744266295038,0.99690539,82207.0,82206.0,0.4138]
[1744266296181,1.11577539,82207.0,82206.0,0.4138]
[1744266296403,0.255486,82196.0,82195.0,0.02270784]
[1744266296615,0.42423982,82196.0,82195.0,0.02270784]
[1744266296914,0.25552,82185.0,82184.0,0.02270784]
[1744266297347,0.26404864,82185.0,82184.0,0.02270784]
[1744266297693,0.243356,82184.0,82183.0,0.4138]
[1744266298096,0.26335376,82184.0,82183.0,0.4138]
[1744266298632,0.01999776,82184.0,82183.0,0.4138]
[1744266299045,0.00862683,82184.0,82183.0,0.4138]
[1744266299244,9.819e-05,82184.0,82183.0,0.4138]
[1744266299446,0.24345419,82184.0,82183.0,0.4138]
[1744266299845,0.44345419,82184.0,82183.0,0.4138]
[1744266300051,0.44345419,82184.0,82183.0,0.4148]
[1744266300498,0.20009819,82184.0,82183.0,0.658159]
[1744266300783,9.819e-05,82184.0,82183.0,0.658159]
[1744266300982,9.819e-05,82184.0,82183.0,0.670326]
[1744266301157,9.819e-05,82184.0,82183.0,0.763326]
[1744266301356,9.819e-05,82184.0,82183.0,0.78601525]
[1744266302570,9.819e-05,82184.0,82183.0,0.48248925]
[1744266302918,0.37617501,82184.0,82183.0,0.43748925]
[1744266303070,0.37617501,82184.0,82183.0,0.4148]
[1744266303461,0.38470055,82184.0,82183.0,0.4148]
[1744266303883,0.58470055,82184.0,82183.0,0.4148]
[1744266305311,0.58470055,82184.0,82183.0,0.4138]
[1744266305520,0.58470055,82184.0,82183.0,0.4148]
[1744266306479,0.58470055,82184.0,82183.0,0.4138]
[1744266306684,0.58470055,82184.0,82183.0,0.4148]
[1744266307180,0.98470055,82184.0,82183.0,0.4148]
[1744266308767,0.58470055,82184.0,82183.0,0.4148]
[1744266309599,0.58470055,82184.0,82183.0,0.001]
[1744266311561,0.65777055,82184.0,82183.0,0.001]
[1744266312829,1.05777055,82184.0,82183.0,0.001]
[1744266314092,0.98470055,82184.0,82183.0,0.001]
[1744266316582,0.99606011,82184.0,82183.0,0.001]
[1744266317515,1.06913011,82184.0,82183.0,0.001]
[1744266317664,1.16173011,82184.0,82183.0,0.001]
[1744266318949,0.255557,82173.0,82172.0,0.4138]
[1744266319193,0.38463636,82173.0,82172.0,0.4138]
[1744266319363,0.39599592,82173.0,82172.0,0.4138]
[1744266319736,0.99599592,82173.0,82172.0,0.4138]
[1744266320165,0.8632731,82173.0,82172.0,0.4138]
[1744266320329,0.8632731,82173.0,82172.0,0.4148]
[1744266320535,0.4632731,82173.0,82172.0,0.4148]
[1744266320734,0.255557,82173.0,82172.0,0.4148]
[1744266321952,0.212169,82176.0,82172.0,0.4148]
[1744266322154,0.255555,82174.0,82172.0,0.4613]